bitfinex/quotes_SOLUSD_20250917
["timestamp","ask_amount","ask_price","bid_price","bid_amount"]
[1758139788991,2.76817674,240.69,240.68,33.1]
[1758139789186,2.76817674,240.69,240.64,0.28432314]
[1758139789389,2.76817674,240.69,240.65,33.1]
[1758139789607,0.72,240.68,240.65,33.1]
[1758139789795,0.72,240.67,240.65,33.1]
[1758139789999,0.72,240.66,240.65,33.38432314]
[1758139790206,0.72,240.66,240.65,33.1]
[1758139790601,0.72,240.66,240.62,4.15578158]
[1758139792215,0.72,240.62,240.59,33.1]
[1758139792416,0.72,240.61,240.59,33.1]
[1758139792604,0.72,240.6,240.59,33.1]
[1758139793408,0.72,240.6,240.58,0.03]
[1758139794527,4.87636927,240.6,240.58,0.03]
[1758139794943,7.80047286,240.59,240.58,0.03]
[1758139795309,8.52047286,240.59,240.58,0.03]
[1758139795725,0.72,240.59,240.58,0.03]
[1758139795920,8.52047286,240.59,240.58,0.03]
[1758139796439,0.72,240.59,240.58,0.03]
[1758139796645,8.52047286,240.59,240.58,0.03]
[1758139797334,0.72,240.59,240.58,0.03]
[1758139797734,8.52047286,240.59,240.58,0.03]
[1758139798846,0.72,240.59,240.58,0.03]
[1758139799240,8.52047286,240.59,240.58,0.03]
[1758139800069,26.0,240.54,240.5,0.03]
[1758139800368,26.0,240.54,240.38,7.83047286]
[1758139800369,14.55301454,240.5,240.38,7.83047286]
[1758139800567,0.72,240.49,240.4,7.80047286]
[1758139800769,0.72,240.48,240.43,7.80047286]
[1758139800978,0.72,240.48,240.41,7.80047286]
[1758139801148,0.72,240.47,240.41,7.80047286]
[1758139801353,7.80047286,240.49,240.38,4.19006774]
[1758139801354,0.72,240.46,240.39,13.59559401]
[1758139801675,0.72,240.45,240.38,7.83047286]
[1758139801852,0.72,240.44,240.38,11.99052782]
[1758139802463,0.71,240.51,240.42,7.80047286]
[1758139802656,0.71,240.5,240.44,7.80047286]
[1758139803499,0.71,240.53,240.46,7.80047286]
[1758139803870,4.15727274,240.55,240.46,0.72]
[1758139804379,0.71,240.54,240.49,7.80047286]
[1758139804582,0.71,240.53,240.49,11.95856864]
[1758139804788,0.71,240.56,240.49,11.95856864]
[1758139805594,4.15657426,240.59,240.51,7.80047286]
[1758139805768,0.71,240.57,240.51,7.80047286]
[1758139805972,0.71,240.56,240.51,0.28432314]
[1758139806164,0.71,240.55,240.48,0.28432314]
[1758139806369,7.80047286,240.58,240.5,7.80047286]
[1758139806576,0.71,240.59,240.53,4.15748555]
[1758139806991,4.8664602,240.59,240.53,4.15748555]
[1758139807493,0.71,240.58,240.52,11.95811185]
[1758139808378,7.80047286,240.6,240.52,11.95811185]
[1758139808579,0.71,240.61,240.53,0.28432314]
[1758139808894,4.86610364,240.61,240.54,7.80047286]
[1758139809075,0.71,240.61,240.54,7.80047286]
[1758139809272,0.71,240.65,240.55,0.72]
[1758139809472,0.71,240.65,240.58,7.80047286]
[1758139809794,0.71,240.65,240.6,7.80047286]
[1758139809972,0.71,240.65,240.58,7.80047286]
[1758139810682,0.71,240.65,240.6,7.80047286]
[1758139811196,7.80047286,240.63,240.56,8.084796]
[1758139811396,0.71,240.62,240.56,8.084796]
[1758139811596,0.71,240.62,240.56,7.80047286]
[1758139811804,0.71,240.61,240.54,7.80047286]
[1758139811981,7.80047286,240.61,240.53,13.73775558]
[1758139812174,8.51047286,240.62,240.54,8.66263443]
[1758139812369,0.71,240.62,240.54,8.66263443]
[1758139812591,8.51047286,240.62,240.54,8.66263443]
[1758139812790,11.95657609,240.61,240.54,12.8199315]
[1758139813300,8.51047286,240.62,240.55,7.80047286]
[1758139813483,12.66641601,240.62,240.55,7.80047286]
[1758139813874,7.80047286,240.59,240.52,26.0]
[1758139814071,7.80047286,240.59,240.53,4.15744834]
[1758139814270,8.51047286,240.58,240.5,0.14216157]
[1758139814475,0.71,240.58,240.52,0.14216157]
[1758139814696,8.51047286,240.61,240.54,7.80047286]
[1758139814996,0.71,240.61,240.55,7.80047286]
[1758139815400,12.66659732,240.61,240.54,7.80047286]
[1758139815599,7.80047286,240.6,240.53,8.52047286]
[1758139815775,7.80047286,240.6,240.53,0.72]
[1758139815975,7.80047286,240.6,240.53,0.86216157]
[1758139816176,7.80047286,240.6,240.53,8.66263443]
[1758139816372,8.51047286,240.61,240.54,7.80047286]
[1758139816795,0.71,240.61,240.55,4.15713988]
[1758139817094,0.71,240.65,240.6,7.80047286]
[1758139817393,0.71,240.64,240.6,7.80047286]
[1758139817595,0.71,240.64,240.58,0.28432314]
[1758139817982,0.71,240.64,240.59,7.80047286]
[1758139818185,0.71,240.64,240.58,8.084796]
[1758139818588,0.71,240.67,240.58,12.96126002]
[1758139818795,7.80047286,240.66,240.59,7.80047286]
[1758139819013,12.66570752,240.67,240.6,7.80047286]
[1758139819215,7.80047287,240.69,240.62,7.80047286]
[1758139820187,7.80047287,240.69,240.61,0.72]
[1758139820188,11.95525629,240.69,240.61,0.72]
[1758139820394,11.95525629,240.69,240.62,7.80047286]
[1758139820588,11.95525629,240.69,240.62,11.95634271]
[1758139820811,11.95525629,240.69,240.59,13.87991715]
[1758139820812,7.80047286,240.67,240.6,12.24104542]
[1758139820996,7.80047286,240.66,240.6,0.28432314]
[1758139821305,7.80047286,240.64,240.6,4.44054729]
[1758139821603,7.80047286,240.65,240.6,5.16054729]
[1758139821799,7.80047286,240.65,240.61,0.72]
[1758139821991,7.80047286,240.63,240.58,4.15662149]
[1758139822191,7.80047286,240.62,240.58,13.59559401]
[1758139822400,7.80047286,240.61,240.59,0.28432314]
[1758139822602,7.80047286,240.61,240.58,13.59559401]
[1758139822807,7.80047286,240.59,240.53,46.63559401]
[1758139823109,7.80047286,240.59,240.56,0.14216157]
[1758139823287,0.06,240.64,240.59,0.14216157]
[1758139823487,0.06,240.64,240.61,21.68039001]
[1758139823683,0.06,240.64,240.62,8.52047286]
[1758139824099,0.06,240.64,240.63,0.72]
[1758139824296,0.06,240.64,240.63,8.52047286]
[1758139824484,0.06,240.64,240.63,14.59991715]
[1758139824688,0.06,240.64,240.63,26.55614781]
[1758139825099,0.06,240.64,240.63,38.92112374]
[1758139825520,1e-08,240.64,240.63,43.72112374]
[1758139827498,1e-08,240.64,240.63,76.76112374]
[1758139828814,1e-08,240.69,240.68,0.28432314]
[1758139829112,1e-08,240.69,240.68,137.77528447]
[1758139829288,1e-08,240.69,240.68,138.49528447]
[1758139832502,1e-08,240.69,240.68,135.49481161]
[1758139832804,1e-08,240.69,240.68,143.29528447]
[1758139833012,1e-08,240.69,240.68,134.75481161]
[1758139833209,1e-08,240.69,240.68,142.55528447]
[1758139833619,1e-08,240.69,240.68,109.53528447]
[1758139833809,1e-08,240.69,240.68,104.92539342]
[1758139834008,1e-08,240.69,240.68,137.94539342]
[1758139834322,1e-08,240.69,240.68,138.62539342]
[1758139834927,1e-08,240.69,240.68,127.45048847]
[1758139835116,0.69000001,240.69,240.68,17.75048847]
[1758139835311,0.69000001,240.69,240.68,50.77048847]
[1758139835536,1e-08,240.69,240.68,53.96107028]
[1758139835708,1e-08,240.69,240.68,54.10323185]
[1758139836028,1e-08,240.69,240.68,54.24539342]
[1758139836206,0.69000001,240.69,240.68,13.59559401]
[1758139836407,0.69000001,240.69,240.68,46.61559401]
[1758139836622,0.69000001,240.69,240.68,50.77048847]
[1758139836838,0.69000001,240.69,240.68,46.75775558]
[1758139837133,1e-08,240.69,240.68,46.89991715]
[1758139837329,1e-08,240.69,240.68,54.24539342]
[1758139837535,1e-08,240.69,240.68,54.92539342]
[1758139837720,1e-08,240.69,240.68,55.34088286]
[1758139837920,1e-08,240.69,240.68,60.14088286]
[1758139838808,1e-08,240.73,240.72,39.59559401]
[1758139839010,1e-08,240.73,240.72,73.99533755]
[1758139839210,1e-08,240.73,240.72,77.18591936]
[1758139839714,1e-08,240.73,240.72,83.76364617]
[1758139840629,1e-08,240.73,240.72,87.91785022]
[1758139840833,1e-08,240.73,240.72,87.50242982]
[1758139841425,1e-08,240.73,240.72,84.11528482]
[1758139841623,1e-08,240.73,240.72,81.01155718]
[1758139841932,1e-08,240.73,240.72,87.8081412]
[1758139842140,4.8,240.8,240.73,0.28432314]
[1758139842345,4.8,240.8,240.78,17.07049896]
[1758139842549,4.8,240.8,240.78,50.09049896]
[1758139842720,4.8,240.8,240.78,54.92366782]
[1758139843048,4.8,240.8,240.78,54.24366782]
[1758139843221,0.79,240.79,240.78,13.73775558]
[1758139843426,0.1,240.79,240.78,49.94833739]
[1758139843625,0.1,240.79,240.78,54.24366782]
[1758139844140,0.1,240.79,240.78,80.24366782]
[1758139844323,0.1,240.79,240.78,77.05308601]
[1758139844523,0.1,240.79,240.78,80.24366782]
[1758139844833,4.8,240.8,240.79,13.87991715]
[1758139845343,4.8,240.8,240.79,17.07049896]
[1758139846540,4.8,240.8,240.79,21.22349534]
[1758139846923,4.8,240.8,240.79,7.62790133]
[1758139847828,4.8,240.8,240.79,21.22349534]
[1758139848042,5.49,240.8,240.79,13.87991715]
[1758139848248,5.49,240.8,240.79,46.59559401]
[1758139848434,5.49,240.8,240.79,46.87991715]
[1758139848628,4.8,240.8,240.79,53.9391722]
[1758139848836,4.8,240.8,240.79,54.22349534]
[1758139849756,5.49,240.8,240.79,3.33274338]
[1758139850053,5.49,240.8,240.79,36.33274338]
[1758139850363,4.8,240.8,240.79,40.62790133]
[1758139850820,5.49,240.8,240.79,40.62790133]
[1758139851247,5.49,240.8,240.79,7.62790133]
[1758139851454,4.8,240.8,240.79,54.22349534]
[1758139851948,4.8,240.8,240.79,53.07263773]
[1758139852649,4.8,240.8,240.79,53.75263773]
[1758139853025,4.8,240.8,240.79,53.07263773]
[1758139853354,1e-08,240.8,240.79,53.07263773]
[1758139853540,1e-08,240.82,240.81,39.59559401]
[1758139853749,1e-08,240.82,240.81,73.97518229]
[1758139854048,4.8,240.86,240.85,41.91964135]
[1758139854258,4.8,240.86,240.85,74.91964135]
[1758139855247,5.49,240.86,240.85,28.32404734]
[1758139855549,5.49,240.86,240.85,33.0]
[1758139855936,5.49,240.86,240.81,2.0397242]
[1758139856260,5.49,240.86,240.82,33.0]
[1758139856261,0.69,240.85,240.82,33.0]
[1758139856441,0.69,240.84,240.83,33.0]
[1758139856753,0.69,240.84,240.81,0.14216157]
[1758139857142,0.69,240.84,240.82,33.0]
[1758139857346,0.69,240.83,240.82,33.0]
[1758139859336,4.8,240.86,240.82,37.15237259]
[1758139859337,0.66,240.85,240.82,37.15237259]
[1758139859651,0.66,240.85,240.83,4.95952554]
[1758139859958,4.8,240.86,240.84,33.0]
[1758139860459,0.66,240.85,240.84,33.0]
[1758139861339,4.8,240.86,240.84,4.15213419]
[1758139861547,4.8,240.86,240.85,38.24384868]
[1758139863554,4.8,240.86,240.85,42.39581048]
[1758139864354,5.47,240.86,240.85,42.39581048]
[1758139864755,4.8,240.86,240.85,9.39581048]
[1758139864955,4.8,240.86,240.85,42.39581048]
[1758139866772,4.8,240.86,240.85,9.39581048]
[1758139866963,4.8,240.86,240.85,42.37581048]
[1758139867144,4.8,240.86,240.85,37.41628494]
[1758139867343,4.8,240.86,240.85,42.37581048]
[1758139867550,4.8,240.86,240.85,55.97140449]
[1758139868345,4.8,240.86,240.85,56.68140449]
[1758139870165,1e-08,240.86,240.85,56.68140449]
[1758139870544,1e-08,240.86,240.85,18.03187895]
[1758139870744,0.67000001,240.86,240.85,18.03187895]
[1758139870946,0.67000001,240.86,240.85,55.97140449]
[1758139871143,1e-08,240.86,240.85,55.97140449]
[1758139871858,1e-08,240.86,240.85,51.01187895]
[1758139872071,0.67000001,240.86,240.85,55.97140449]
[1758139872465,0.67000001,240.86,240.85,22.99140449]
[1758139872767,0.67000001,240.86,240.85,9.39581048]
[1758139873063,0.67000001,240.86,240.85,42.37581048]
[1758139873265,0.67000001,240.86,240.85,37.41628494]
[1758139873570,0.67000001,240.86,240.85,37.27412337]
[1758139873967,1e-08,240.86,240.85,42.37581048]
[1758139874644,0.67000001,240.86,240.85,42.37581048]
[1758139874869,0.67000001,240.86,240.85,37.41628494]
[1758139875046,0.67000001,240.86,240.85,42.37581048]
[1758139875865,1e-08,240.86,240.85,42.37581048]
[1758139876252,1e-08,240.86,240.85,37.41628494]
[1758139876456,0.67000001,240.86,240.85,42.37581048]
[1758139877148,1e-08,240.86,240.85,42.37581048]
[1758139878278,1e-08,240.86,240.85,55.97140449]
[1758139878489,1e-08,240.86,240.85,22.99140449]
[1758139878779,1e-08,240.86,240.85,55.97140449]
[1758139879076,0.67000001,240.86,240.85,32.98]
[1758139879881,0.67000001,240.86,240.79,0.03]
[1758139879882,4.8218176,240.86,240.79,0.03]
[1758139880056,2.03989623,240.83,240.79,0.03]
[1758139880376,2.03989623,240.81,240.79,0.03]
[1758139880554,0.67,240.82,240.79,33.01]
[1758139880750,0.67,240.81,240.79,33.01]
[1758139880976,0.67,240.8,240.79,33.01]
[1758139881178,0.17,240.8,240.79,33.01]
[1758139882577,0.17,240.8,240.79,0.03]
[1758139882763,5.13120376,240.8,240.79,0.03]
[1758139883082,0.17,240.8,240.79,0.03]
[1758139883383,5.13120376,240.8,240.79,0.03]
[1758139884052,0.17,240.8,240.79,0.03]
[1758139884368,0.17,240.8,240.72,10.38518443]
[1758139884369,5.13120376,240.8,240.76,32.98]
[1758139884572,0.67,240.79,240.76,32.98]
[1758139884768,0.67,240.78,240.76,32.98]
[1758139886961,0.67,240.82,240.76,32.98]
[1758139887172,0.67,240.81,240.76,32.98]
[1758139887379,0.67,240.8,240.76,32.98]
[1758139887580,0.67,240.79,240.76,32.98]
[1758139887782,4.15234428,240.83,240.76,32.98]
[1758139888081,0.67,240.82,240.73,4.43835462]
[1758139888283,4.15234428,240.83,240.79,4.96120376]
[1758139888284,0.67,240.81,240.79,4.96120376]
[1758139888576,0.67,240.8,240.79,4.96120376]
[1758139889950,0.67,240.8,240.76,32.98]
[1758139890176,0.67,240.79,240.78,4.96120376]
[1758139890374,0.67,240.79,240.78,0.46120376]
[1758139891792,0.67,240.79,240.76,4.96120376]
[1758139892084,0.67,240.78,240.76,4.96120376]
[1758139892384,0.67,240.78,240.77,4.96120376]
[1758139893379,0.67,240.78,240.76,4.96120376]
[1758139893569,0.7,240.77,240.76,4.96120376]
[1758139893775,4.15277567,240.81,240.76,4.96120376]
[1758139893776,0.7,240.79,240.76,4.96120376]
[1758139893980,0.7,240.8,240.76,4.96120376]
[1758139894186,0.7,240.79,240.76,4.96120376]
[1758139894588,0.7,240.81,240.76,4.96120376]
[1758139894798,0.7,240.8,240.76,9.11456744]
[1758139894984,0.7,240.79,240.76,4.96120376]
[1758139895492,0.7,240.78,240.76,4.96120376]
[1758139895684,0.7,240.77,240.76,4.96120376]
[1758139895991,0.7,240.77,240.74,37.13369682]
[1758139896204,0.7,240.82,240.75,5.62120376]
[1758139896385,0.7,240.82,240.78,4.96120376]
[1758139896588,0.7,240.81,240.78,4.96120376]
[1758139896821,14.59133603,240.86,240.74,37.13369682]
[1758139896822,0.7,240.8,240.74,4.81369682]
[1758139897099,0.7,240.8,240.77,4.96120376]
[1758139897297,0.7,240.79,240.74,37.13369682]
[1758139897486,0.7,240.79,240.77,4.96120376]
[1758139897891,0.7,240.82,240.77,4.96120376]
[1758139898095,0.7,240.81,240.75,0.66]
[1758139898297,0.7,240.84,240.79,4.96120376]
[1758139898499,0.7,240.83,240.81,4.96120376]
[1758139899176,0.7,240.83,240.77,0.66]
[1758139899373,0.76000001,240.86,240.81,4.96120376]
[1758139899602,0.76000001,240.86,240.85,4.96120376]
[1758139899809,0.76000001,240.86,240.81,4.81249185]
[1758139900099,4.2118816,240.86,240.79,32.98]
[1758139900296,0.7,240.85,240.79,13.59559401]
[1758139900509,0.7,240.85,240.82,4.96120376]
[1758139901501,4.2118816,240.86,240.82,4.96120376]
[1758139901693,0.7,240.85,240.82,4.96120376]
[1758139901907,0.06,240.83,240.79,13.59559401]
[1758139902089,0.76,240.83,240.79,13.59559401]
[1758139902492,0.06,240.83,240.81,4.96120376]
[1758139903298,0.06,240.83,240.81,9.11380432]
[1758139903490,0.06,240.83,240.81,9.77380432]
[1758139903988,0.76,240.83,240.8,2.04024981]
[1758139904329,0.06,240.83,240.8,2.04024981]
[1758139904686,0.06,240.83,240.82,2.04024981]
[1758139905429,0.06,240.83,240.82,6.85272883]
[1758139905706,0.06,240.83,240.82,39.81272883]
[1758139906491,0.06,240.83,240.82,37.77247902]
[1758139906698,0.06,240.83,240.82,55.44857265]
[1758139906884,0.06,240.83,240.82,55.73289579]
[1758139907696,0.06,240.83,240.82,22.77289579]
[1758139907988,0.06,240.83,240.82,55.73289579]
[1758139908183,0.06,240.83,240.82,81.73289579]
[1758139908391,1e-08,240.86,240.83,0.28432314]
[1758139908590,1e-08,240.86,240.85,15.63584382]
[1758139909020,1e-08,240.86,240.85,16.29584382]
[1758139909201,1e-08,240.86,240.85,20.44780562]
[1758139909891,0.70000001,240.86,240.82,32.96]
[1758139910085,0.70000001,240.86,240.85,2.04024981]
[1758139910290,0.70000001,240.86,240.76,10.38358862]
[1758139910291,1e-08,240.86,240.76,11.04358862]
[1758139910490,1e-08,240.86,240.81,2.04024981]
[1758139910722,1e-08,240.86,240.85,2.04024981]
[1758139911419,1e-08,240.86,240.85,6.85221161]
[1758139911618,1e-08,240.86,240.85,39.81221161]
[1758139911917,1e-08,240.86,240.85,40.95760997]
[1758139912122,1e-08,240.86,240.85,54.55320398]
[1758139912501,1e-08,240.86,240.85,7.99760997]
[1758139912688,1e-08,240.86,240.85,40.95760997]
[1758139913713,0.1,240.89,240.87,0.28432314]
[1758139913908,0.1,240.89,240.88,36.80564817]
[1758139915207,0.1,240.89,240.88,40.95709287]
[1758139915710,0.1,240.89,240.88,54.83701002]
[1758139916222,0.1,240.89,240.88,51.65136185]
[1758139916396,0.1,240.89,240.88,21.87701002]
[1758139916596,0.1,240.89,240.88,51.65136185]
[1758139916798,0.1,240.89,240.88,54.17701002]
[1758139917204,0.1,240.89,240.88,54.83701002]
[1758139917791,0.1,240.89,240.88,54.17701002]
[1758139918014,0.1,240.89,240.88,21.21701002]
[1758139918216,0.1,240.89,240.88,36.12564817]
[1758139918414,0.1,240.89,240.88,3.18564817]
[1758139918613,0.1,240.89,240.87,4.15153156]
[1758139918614,0.79,240.89,240.85,18.03175512]
[1758139918814,0.1,240.89,240.88,3.18564817]
[1758139919013,0.1,240.89,240.88,36.12564817]
[1758139919894,0.79,240.89,240.88,36.12564817]
[1758139920207,0.79,240.89,240.88,3.18564817]
[1758139920902,0.79,240.89,240.8,0.67]
[1758139921103,0.79,240.89,240.85,3.18564817]
[1758139921305,0.69,240.88,240.79,4.15289685]
[1758139921618,4.841757,240.87,240.81,3.18564817]
[1758139921792,0.69,240.86,240.8,3.18564817]
[1758139921996,0.69,240.85,240.81,32.94]
[1758139922324,7.33740517,240.87,240.81,32.94]
[1758139922325,0.69,240.84,240.81,32.94]
[1758139922503,0.67,240.83,240.8,3.18564817]
[1758139922700,0.67,240.82,240.8,3.18564817]
[1758139923019,0.67,240.84,240.81,3.18564817]
[1758139923234,0.67,240.84,240.82,3.18564817]
[1758139924228,0.67,240.83,240.82,3.18564817]
[1758139924929,4.1514447,240.88,240.82,3.18564817]
[1758139925101,0.67,240.86,240.82,3.18564817]
[1758139925301,0.67,240.85,240.82,3.18564817]
[1758139925502,0.67,240.85,240.8,37.09281949]
[1758139925503,0.67,240.85,240.8,32.94]
[1758139925824,0.67,240.84,240.82,3.18564817]
[1758139926203,0.67,240.83,240.82,3.18564817]
[1758139926417,4.1514447,240.88,240.82,3.18564817]
[1758139926724,0.67,240.86,240.8,37.09280783]
[1758139926896,4.1514447,240.88,240.8,32.94]
[1758139927224,0.67,240.87,240.81,3.18564817]
[1758139927412,0.67,240.86,240.81,3.18564817]
[1758139927615,4.82196983,240.85,240.81,3.18564817]
[1758139927921,0.67,240.84,240.8,32.94]
[1758139928103,0.67,240.83,240.82,3.18564817]
[1758139928504,0.67,240.85,240.82,3.18564817]
[1758139928722,0.67,240.84,240.83,3.18564817]
[1758139928916,0.1,240.89,240.86,0.28432314]
[1758139929100,0.1,240.89,240.87,36.79564817]
[1758139929301,0.1,240.89,240.88,3.85564817]
[1758139930022,0.1,240.89,240.88,8.00709287]
[1758139930724,0.1,240.89,240.88,21.60268688]
[1758139931641,4.8,240.92,240.91,26.0]
[1758139931846,4.8,240.92,240.91,80.82649305]
[1758139932130,4.8,240.92,240.91,80.54216991]
[1758139932339,4.8,240.92,240.91,80.82649305]
[1758139933122,4.8,240.92,240.91,77.64084488]
[1758139933309,4.8,240.92,240.91,80.82649305]
[1758139934243,4.8,240.98,240.92,13.87991715]
[1758139934415,4.8,240.98,240.97,3.18564817]
[1758139934736,4.8,240.98,240.97,36.79564817]
[1758139936233,4.8,240.98,240.97,40.94554234]
[1758139936433,4.8,240.98,240.97,32.94]
[1758139936627,4.8,240.98,240.97,50.67556532]
[1758139937010,4.8,240.98,240.97,54.82545949]
[1758139938945,0.1,240.99,240.97,54.82545949]
[1758139939155,23.598,241.02,241.0,13.87991715]
[1758139939329,23.598,241.02,241.01,76.65556532]
[1758139940344,23.598,241.02,241.01,80.80477074]
[1758139940923,4.82,241.04,241.02,13.87991715]
[1758139940924,1e-08,241.04,241.02,13.87991715]
[1758139941136,0.1,241.09,241.07,26.0]
[1758139941342,0.1,241.09,241.08,53.17121349]
[1758139941533,1e-08,241.09,241.08,53.84121349]
[1758139941735,0.1,241.19,241.11,39.87991715]
[1758139941936,0.1,241.19,241.15,47.64362015]
[1758139942333,5.47,241.16,241.02,37.06898137]
[1758139942542,0.67,241.15,241.02,47.44156455]
[1758139942728,0.67,241.14,241.03,13.73775558]
[1758139943039,0.67,241.13,241.12,7.763703]
[1758139943245,4.8,241.16,241.12,7.90586457]
[1758139943246,5.47,241.16,241.12,7.90586457]
[1758139943419,5.47,241.16,241.14,7.763703]
[1758139943620,4.8,241.16,241.15,33.64]
[1758139944336,4.8,241.16,241.15,37.78679659]
[1758139944841,4.8,241.16,241.15,51.3823906]
[1758139945427,4.8,241.16,241.15,51.66671374]
[1758139945624,4.8,241.16,241.15,59.43041674]
[1758139946155,1e-08,241.16,241.15,71.90565604]
[1758139946345,28.398,241.22,241.21,4.1457651]
[1758139946543,28.398,241.22,241.21,59.54938525]
[1758139946859,1e-08,241.22,241.21,59.54938525]
[1758139947056,1e-08,241.22,241.21,51.78568225]
[1758139947256,1e-08,241.22,241.21,59.54938525]
[1758139947634,0.05,241.3,241.21,59.54938525]
[1758139947635,0.05,241.3,241.29,26.28432314]
[1758139947953,0.05,241.3,241.29,60.06432314]
[1758139948151,0.72,241.3,241.24,26.0]
[1758139948353,0.67,241.29,241.25,45.74867889]
[1758139948536,0.05,241.3,241.28,21.35929701]
[1758139948859,0.05,241.3,241.29,47.75991715]
[1758139949054,0.05,241.3,241.28,7.763703]
[1758139949228,0.05,241.3,241.28,33.94]
[1758139949644,0.05,241.3,241.29,7.763703]
[1758139950050,0.72,241.3,241.29,34.06]
[1758139950651,0.72,241.3,241.27,34.08]
[1758139950955,0.67,241.29,241.27,34.08]
[1758139951157,0.67,241.28,241.27,34.08]
[1758139952060,0.67,241.28,241.23,34.06]
[1758139952365,0.67,241.28,241.25,7.763703]
[1758139952656,0.65,241.27,241.25,41.823703]
[1758139952857,0.65,241.26,241.25,34.06]
[1758139953063,0.65,241.26,241.15,16.6219653]
[1758139953266,7.763703,241.24,241.16,34.06]
[1758139953474,0.65,241.23,241.16,34.06]
[1758139953646,0.05,241.3,241.16,34.08]
[1758139953647,0.65,241.22,241.16,34.08]
[1758139953964,7.763703,241.17,241.12,34.08]
[1758139954169,14.55477362,241.3,241.12,34.08]
[1758139954335,0.65,241.17,241.12,34.08]
[1758139954536,0.65,241.16,241.12,45.9909954]
[1758139954737,0.65,241.16,241.12,38.2272924]
[1758139955161,0.05,241.3,241.14,13.59559401]
[1758139955360,0.65,241.29,241.22,7.763703]
[1758139955552,0.65,241.29,241.23,34.12]
[1758139956246,0.65,241.29,241.23,41.883703]
[1758139956451,0.65,241.29,241.25,7.763703]
[1758139956968,0.65,241.28,241.24,11.90889703]
[1758139957448,0.05,241.3,241.24,11.90889703]
[1758139958054,0.05,241.3,241.26,7.763703]
[1758139958272,0.05,241.3,241.28,7.763703]
[1758139959063,0.05,241.3,241.28,4.14454472]
[1758139959255,0.05,241.3,241.29,34.06]
[1758139960732,0.7,241.3,241.29,34.06]
[1758139961243,0.05,241.3,241.29,34.06]
[1758139961666,0.7,241.3,241.29,34.06]
[1758139962239,0.05,241.3,241.29,34.06]
[1758139964477,0.05,241.3,241.29,41.823703]
[1758139964771,0.05,241.3,241.29,55.70362015]
[1758139965178,0.05,241.3,241.29,47.93991715]
[1758139965356,0.05,241.3,241.29,55.70362015]
[1758139967053,0.05,241.3,241.29,55.56145858]
[1758139967244,0.05,241.3,241.29,41.823703]
[1758139967855,0.05,241.3,241.29,34.06]
[1758139968065,0.05,241.3,241.29,41.823703]
[1758139968561,0.05,241.3,241.29,55.70362015]
[1758139969355,0.05,241.3,241.29,47.93991715]
[1758139969555,0.05,241.3,241.29,85.84801071]
[1758139969861,0.05,241.3,241.29,85.68801071]
[1758139970874,0.05,241.3,241.29,59.68801071]
[1758139973478,0.05,241.3,241.29,51.92430771]
[1758139973676,0.05,241.3,241.29,59.68801071]
[1758139973885,0.05,241.3,241.29,56.86049478]
[1758139974183,0.05,241.3,241.29,57.27493383]
[1758139974584,0.05,241.3,241.29,61.66049478]
[1758139974782,0.05,241.3,241.29,56.86049478]
[1758139975152,0.05,241.3,241.29,51.92430771]
[1758139975381,0.05,241.3,241.29,56.86049478]
[1758139976865,1e-08,241.3,241.29,56.86049478]
[1758139977065,1e-08,241.3,241.29,18.02430771]
[1758139977286,1e-08,241.3,241.29,56.78049478]
[1758139980595,1e-08,241.3,241.29,57.19493383]
[1758139980982,0.1,241.39,241.33,39.59559401]
[1758139981298,0.1,241.39,241.38,44.81610422]